bitfinex/quotes_ETHUSD_20220118
["timestamp","ask_amount","ask_price","bid_price","bid_amount"]
[1642536618486,3.33073401,3121.1,3120.2,0.00747379]
[1642536618684,1.0,3121.0,3120.2,0.00747379]
[1642536618884,0.128,3120.9,3120.2,0.00747379]
[1642536619090,0.128,3120.9,3120.4,2.72292347]
[1642536619289,0.92954,3120.9,3120.4,2.72292347]
[1642536619530,0.128,3120.9,3120.8,1.53680742]
[1642536619932,0.128,3120.9,3120.8,1.54087066]
[1642536620131,1.70781601,3121.0,3120.8,1.84087066]
[1642536620533,0.128,3121.5,3120.9,0.00349482]
[1642536620733,0.128,3121.6,3120.9,0.00349482]
[1642536620934,0.593,3121.6,3120.9,0.00349482]
[1642536621535,2.00990113,3121.3,3120.9,0.00349482]
[1642536622337,0.128,3121.2,3120.9,0.00349482]
[1642536622536,0.26856144,3121.1,3120.9,0.00349482]
[1642536622736,4.378,3121.0,3120.9,0.00349482]
[1642536622935,0.128,3121.0,3120.9,0.00349482]
[1642536623601,0.465,3121.6,3121.0,2.55]
[1642536623804,0.1281,3121.7,3121.1,2.44949348]
[1642536624002,0.1265,3122.0,3121.1,0.00235797]
[1642536624204,0.00105257,3121.7,3121.2,0.00178955]
[1642536624406,0.00105257,3121.7,3120.9,3.42631626]
[1642536624605,0.00227369,3121.6,3121.5,1.29043957]
[1642536624805,0.00227369,3121.6,3121.5,1.59043957]
[1642536626011,0.00227369,3121.6,3121.5,3.26531366]
[1642536626411,0.00227369,3121.6,3121.5,1.59043957]
[1642536626613,0.00227369,3121.6,3121.5,1.71843957]
[1642536627643,0.00227369,3121.6,3121.5,1.59043957]
[1642536628844,0.00227369,3121.6,3121.5,6.40375595]
[1642536629043,0.00227369,3121.6,3121.5,6.53175595]
[1642536629244,0.95956834,3122.7,3121.6,5.65]
[1642536629444,0.95956834,3122.7,3121.9,0.8009106]
[1642536629648,0.00511581,3122.5,3122.0,2.64150704]
[1642536629844,0.00511581,3122.5,3122.1,2.32468559]
[1642536630045,0.128,3123.0,3122.4,1.55333379]
[1642536630446,0.00568424,3122.6,3122.4,1.55333379]
[1642536630892,0.00511581,3122.5,3122.4,1.55333379]
[1642536637350,0.00511581,3122.5,3122.4,3.14099379]
[1642536638699,0.00511581,3122.5,3122.4,2.84099379]
[1642536639687,0.00511581,3122.5,3122.4,1.71299379]
[1642536639890,0.00511581,3122.5,3122.4,2.71299379]
[1642536640491,0.00511581,3122.5,3122.4,1.71299379]
[1642536640689,0.00511581,3122.5,3122.4,1.41299379]
[1642536640890,0.00511581,3122.5,3122.4,1.25333379]
[1642536642039,0.00511581,3122.5,3122.4,1.55333379]
[1642536642943,0.00511581,3122.5,3122.4,1.85333379]
[1642536643140,0.00511581,3122.5,3122.4,4.4453975]
[1642536643340,0.00511581,3122.5,3122.4,5.4453975]
[1642536643942,0.00511581,3122.5,3122.4,5.3173975]
[1642536644543,0.00511581,3122.5,3122.4,6.6187975]
[1642536644741,0.00511581,3122.5,3122.4,5.6187975]
[1642536644942,0.00511581,3122.5,3122.4,1.55333379]
[1642536645894,0.00511581,3122.5,3122.4,1.53974785]
[1642536646801,0.00511581,3122.5,3122.4,1.99940785]
[1642536647007,0.00511581,3122.5,3122.4,5.11564127]
[1642536647201,0.00511581,3122.5,3122.4,5.27530127]
[1642536647395,0.00511581,3122.5,3122.4,5.11564127]
[1642536647606,0.00511581,3122.5,3122.4,2.64052785]
[1642536647797,0.00511581,3122.5,3122.4,2.34052785]
[1642536648795,0.00511581,3122.5,3122.4,4.7941553]
[1642536650648,0.00511581,3122.5,3122.4,5.7941553]
[1642536650850,0.00511581,3122.5,3122.4,6.0941553]
[1642536651051,0.00511581,3122.5,3122.4,6.2538153]
[1642536651862,0.00511581,3122.5,3122.4,6.28646426]
[1642536652051,0.128,3123.5,3122.8,0.8005703]
[1642536652254,0.128,3123.6,3123.0,0.80056]
[1642536652452,0.00511582,3123.4,3123.0,0.80056]
[1642536652651,0.00511582,3123.4,3123.3,1.18346074]
[1642536652856,0.128,3123.7,3123.3,1.48346074]
[1642536653292,0.00625266,3123.6,3123.4,0.800648]
[1642536653699,0.128,3123.7,3122.8,0.128]
[1642536653700,0.13368424,3123.5,3122.8,0.128]
[1642536654094,0.00511582,3123.4,3122.8,0.128]
[1642536654293,0.128,3123.3,3122.8,0.128]
[1642536654506,0.13254739,3123.3,3122.8,0.128]
[1642536654794,1.13475503,3123.2,3122.8,0.128]
[1642536654994,3.4218807,3123.1,3122.9,1.9603806]
[1642536655206,3.42529124,3123.1,3122.9,2.2603806]
[1642536655405,4.75284212,3123.0,3122.9,2.2603806]
[1642536655611,4.88084212,3123.0,3122.9,2.2603806]
[1642536656096,7.39459951,3123.0,3122.9,2.2603806]
[1642536656306,7.39459951,3123.0,3122.9,1.9603806]
[1642536656699,8.19558951,3123.0,3122.9,1.9603806]
[1642536657962,4.88084212,3123.0,3122.9,1.9603806]
[1642536658343,0.13084212,3123.0,3122.9,1.9603806]
[1642536658557,0.08084212,3123.0,3122.9,1.9603806]
[1642536659191,0.128,3123.2,3122.9,1.9603806]
[1642536659352,0.128,3123.2,3122.8,0.128]
[1642536659547,0.12913685,3123.2,3123.0,1.28720948]
[1642536659755,0.00113685,3123.2,3123.0,1.28720948]
[1642536659959,0.128,3123.1,3122.8,0.128]
[1642536660810,2.59707648,3123.1,3122.8,0.128]
[1642536662015,2.46907648,3123.1,3122.8,0.128]
[1642536662204,0.12913685,3123.2,3122.8,0.128]
[1642536662408,0.12913685,3123.2,3122.9,1.77895668]
[1642536662711,0.00113685,3123.2,3122.9,0.3]
[1642536663105,0.00113685,3123.2,3122.7,1.83103713]
[1642536663570,0.00113685,3123.2,3122.8,0.00113685]
[1642536663707,0.00113685,3123.2,3122.9,1.76347455]
[1642536664114,0.00113685,3123.2,3122.9,2.06347455]
[1642536671951,0.00113685,3123.2,3123.0,0.80062]
[1642536672145,0.00113685,3123.2,3123.1,0.128]
[1642536672346,0.00113685,3123.2,3123.1,0.428]
[1642536672543,0.00113685,3123.2,3123.1,0.728]
[1642536672754,0.00113685,3123.2,3123.1,0.428]
[1642536673349,0.00113685,3123.2,3123.1,1.22859]
[1642536674545,0.00113685,3123.2,3123.1,2.52859]
[1642536674949,0.00113685,3123.2,3123.1,5.24993668]
[1642536676595,0.00113685,3123.2,3123.1,3.94993668]
[1642536676994,0.00113685,3123.2,3123.1,3.14934668]
[1642536677400,5.51278119,3125.0,3123.4,18.75]
[1642536677608,5.39278119,3125.0,3124.0,0.0125675]
[1642536677815,1.72033373,3125.3,3124.9,5.05]
[1642536678007,1.08639614,3125.3,3124.9,0.1279]
[1642536678210,0.01136847,3125.2,3124.9,0.1279]
[1642536678397,0.01136847,3125.2,3125.0,1.90954812]
[1642536678597,0.01080004,3125.1,3125.0,1.90954812]
[1642536678798,0.01080004,3125.1,3125.0,3.80982262]
[1642536679470,0.01080004,3125.1,3125.0,3.71014877]
[1642536679678,0.01080004,3125.1,3125.0,2.10987427]
[1642536684202,0.39515549,3125.1,3124.3,0.1279]
[1642536684411,2.55654472,3125.0,3124.3,0.1279]
[1642536684596,2.86677634,3125.0,3124.3,0.1279]
[1642536684800,1.0096632,3124.9,3124.3,0.1279]
[1642536685194,8.06614571,3124.4,3124.3,0.1279]
[1642536685399,1.45003392,3124.4,3124.3,0.1279]
[1642536685602,1.456855,3124.4,3124.3,0.1279]
[1642536686206,4.756855,3124.4,3124.3,0.1279]
[1642536686602,3.30682108,3124.4,3124.3,0.1279]
[1642536686806,5.94320079,3124.4,3124.3,0.1279]
[1642536688047,3.30682108,3124.4,3124.3,0.1279]
[1642536688849,3.2932815,3124.4,3124.3,0.1279]
[1642536689249,1.74198162,3124.5,3124.3,0.1279]
[1642536689650,2.74198162,3124.5,3124.3,0.1279]
[1642536689857,1.74198162,3124.5,3124.3,0.1279]
[1642536691707,0.80052,3124.8,3124.3,0.1279]
[1642536691912,0.38435545,3125.1,3124.3,0.1279]
[1642536692114,0.00113685,3124.6,3124.3,0.1279]
[1642536693112,0.00113685,3124.6,3124.3,0.4279]
[1642536693908,0.00113685,3124.6,3124.3,0.1279]
[1642536694110,0.80171685,3124.6,3124.3,0.1279]
[1642536694546,1.60229685,3124.6,3124.3,0.1279]
[1642536694947,0.80061,3124.5,3124.3,0.1279]
[1642536696150,0.80061,3124.5,3124.2,2.47530022]
[1642536697150,0.80061,3124.5,3124.2,0.3]
[1642536697356,0.80061,3124.5,3123.6,0.128]
[1642536697553,0.80061,3124.5,3123.5,0.128]
[1642536697754,0.80061,3124.5,3123.7,0.00397896]
[1642536697976,0.80061,3124.5,3123.8,0.128]
[1642536698423,0.80061,3124.5,3124.3,1.80068955]
[1642536698607,0.80061,3124.5,3123.9,0.00284212]
[1642536698807,1.10061,3124.5,3123.9,0.00284212]
[1642536699009,0.80062,3124.3,3123.6,0.00454739]
[1642536699411,1.60124,3124.3,3123.7,0.128]
[1642536699624,0.80062,3124.2,3123.7,0.128]
[1642536699813,0.80062,3124.2,3123.8,2.25145472]
[1642536700073,0.80065,3124.1,3123.8,2.55145472]
[1642536700214,0.80065,3124.1,3123.9,0.00284212]
[1642536701614,1.60127,3124.2,3123.9,0.00284212]
[1642536701813,1.15531678,3124.4,3123.9,0.00284212]
[1642536702661,1.15531678,3124.4,3124.3,2.2092068]
[1642536703456,1.95588678,3124.4,3124.3,2.2092068]
[1642536703973,1.95588678,3124.4,3123.9,0.00284212]
[1642536704166,0.35472678,3124.4,3123.9,0.00284212]
[1642536704358,0.35472678,3124.4,3123.6,0.00454739]
[1642536704569,0.35472678,3124.4,3123.7,0.128]
[1642536704968,0.35472678,3124.4,3123.8,2.27510375]
[1642536705160,0.35472678,3124.4,3123.9,2.69988398]
[1642536705357,0.35472678,3124.4,3123.9,2.7027261]
[1642536705704,0.35472678,3124.4,3124.0,0.00227369]
[1642536705906,0.35472678,3124.4,3124.1,0.128]
[1642536706102,0.35472678,3124.4,3124.0,0.13027369]
[1642536706300,0.35472678,3124.4,3124.2,0.00113685]
[1642536706502,0.35472678,3124.4,3124.1,0.00170527]
[1642536707711,0.35472678,3124.4,3124.1,0.80205197]
[1642536707905,0.35472678,3124.4,3124.2,0.3]
[1642536708217,0.35472678,3124.4,3124.2,0.30113685]
[1642536709652,0.35472678,3124.4,3124.3,2.16547063]
[1642536718960,0.35472678,3124.4,3124.3,4.65409624]
[1642536719360,0.00113685,3124.6,3124.3,5.45444304]
[1642536719569,0.00113685,3124.6,3124.3,2.96581743]
[1642536722308,0.8004,3125.0,3124.3,2.96581743]
[1642536722522,4.27595545,3125.1,3124.3,2.96581743]
[1642536722723,0.00284212,3124.9,3124.3,2.96581743]
[1642536723125,0.00227369,3124.8,3124.3,2.96581743]
[1642536723315,3.9797675,3125.1,3124.4,2.45]
[1642536723517,3.9797675,3125.1,3124.4,1.25837367]
[1642536723709,3.9797675,3125.1,3124.5,0.00170527]
[1642536723710,0.00113685,3125.0,3124.5,0.00170527]
[1642536723909,0.00113685,3125.0,3124.4,0.30227369]
[1642536724127,0.80153685,3125.0,3124.5,0.00170527]
[1642536725153,0.80153685,3125.0,3124.5,1.23530789]
[1642536725561,0.00113685,3125.0,3124.6,0.00113684]
[1642536725775,0.00113685,3125.0,3124.7,0.128]
[1642536726758,0.00113685,3125.0,3124.7,0.428]
[1642536727867,1.11341297,3126.0,3124.7,0.428]
[1642536727868,5.39497517,3126.3,3125.1,0.8001366]
[1642536728082,5.39497517,3126.5,3125.2,4.15590826]
[1642536728299,5.39497517,3126.5,3125.3,0.02968574]
[1642536728300,0.00341054,3125.6,3125.3,0.02968574]
[1642536728528,0.00341054,3125.6,3125.4,0.1279]
[1642536728701,5.39497517,3126.5,3125.4,0.1279]
[1642536728702,0.00284212,3125.5,3125.4,4.1279]
[1642536728900,0.00284212,3125.5,3125.4,4.04756272]
[1642536729902,0.00284212,3125.5,3125.4,4.84760112]
[1642536730167,0.00284212,3125.5,3125.4,7.3949333]
[1642536730308,0.00284212,3125.5,3125.4,4.71970112]
[1642536730811,0.00284212,3125.5,3125.4,3.91966272]
[1642536731618,0.00284212,3125.5,3125.4,2.49450522]
[1642536731812,0.00284212,3125.5,3125.4,2.19450522]
[1642536736923,0.00284212,3125.5,3125.4,2.49450522]
[1642536739763,0.00284212,3125.5,3125.4,4.98483894]
[1642536739966,0.00284212,3125.5,3125.4,5.11273894]
[1642536740867,0.00284212,3125.5,3125.4,2.62240522]
[1642536743598,8.25004,3126.5,3125.5,5.65]
[1642536743803,5.13204,3126.7,3125.7,0.8000057]
[1642536743804,4.332,3126.7,3125.7,0.8000057]
[1642536744011,4.332,3126.7,3125.8,0.7279]
[1642536744012,0.00397896,3126.2,3125.8,0.7279]
[1642536744403,0.00341054,3126.1,3125.8,0.75815468]
[1642536744623,0.00341054,3126.1,3125.9,1.86269981]
[1642536744804,4.332,3126.7,3125.9,2.34746506]
[1642536744805,0.00284212,3126.0,3125.9,2.34746506]
[1642536745005,0.00284212,3126.0,3125.9,2.64746506]
[1642536746019,0.00284212,3126.0,3125.9,2.77536506]
[1642536747096,0.00284212,3126.0,3125.9,2.64746506]
[1642536750492,0.00284212,3126.0,3125.9,6.39746506]
[1642536750722,0.00284212,3126.0,3125.9,7.39746506]
[1642536750905,0.00284212,3126.0,3125.9,7.43032578]
[1642536751106,0.00284212,3126.0,3125.9,7.43103134]
[1642536751520,0.00284212,3126.0,3125.9,26.30893134]
[1642536751717,3.1412,3127.3,3126.3,0.79966]
[1642536751912,6.1259,3127.4,3126.3,0.79966]
[1642536751913,6.1259,3127.4,3126.7,0.7996515]
[1642536752114,0.00682108,3127.2,3126.7,0.3]
[1642536752525,0.00625265,3127.1,3126.7,0.3]
[1642536752715,0.00625265,3127.1,3126.8,2.25306714]
[1642536752924,3.7442,3127.4,3127.0,1.49877593]
[1642536753119,7.6262,3127.7,3127.0,1.79877593]
[1642536753120,3.7518,3127.7,3127.0,1.79877593]
[1642536753320,1.7997,3128.0,3127.0,1.79877593]
[1642536753321,0.0073895,3127.3,3127.0,1.79877593]
[1642536753525,0.0073895,3127.3,3127.0,0.3]
[1642536753716,0.00682108,3127.2,3127.0,0.3]
[1642536753940,0.00682108,3127.2,3126.8,2.55306714]
[1642536754114,0.00625265,3127.1,3126.8,2.55306714]
[1642536754571,0.00568423,3127.0,3126.8,2.55306714]
[1642536754952,0.00511581,3126.9,3126.8,2.55306714]
[1642536757468,0.95511581,3127.8,3126.8,2.55306714]
[1642536757668,0.79974,3127.7,3126.8,2.55306714]
[1642536757868,0.79983,3127.6,3126.8,2.55306714]
[1642536758307,2.48378403,3127.5,3126.8,2.55306714]
[1642536758515,0.00341054,3127.5,3126.8,2.55306714]
[1642536758709,0.00284211,3127.4,3126.8,2.55306714]
[1642536759007,3.2155494,3127.9,3126.8,2.55306714]
[1642536759008,0.00227369,3127.3,3126.8,2.55306714]
[1642536759270,0.79994,3127.2,3126.8,2.55306714]
[1642536759408,0.79994,3127.1,3126.8,2.55306714]
[1642536759613,0.80107684,3127.1,3126.8,2.55306714]
[1642536759909,2.47673946,3127.0,3126.8,2.25306714]
[1642536760309,0.80107684,3127.1,3126.8,2.25306714]
[1642536760509,4.11481025,3127.0,3126.8,2.25306714]
[1642536760711,1.60011,3127.0,3126.8,2.25306714]
[1642536760927,4.13023082,3127.0,3126.8,2.25306714]
[1642536761117,1.60011,3127.0,3126.8,2.25306714]
[1642536761719,4.89152711,3127.0,3126.7,5.0]
[1642536761975,5.19152711,3127.0,3126.7,5.0]
[1642536762164,1.0,3126.9,3126.7,5.0]
[1642536762361,6.71834153,3126.8,3126.7,5.0]
[1642536762560,7.71834153,3126.8,3126.7,5.0]
[1642536762762,5.15,3126.8,3126.7,6.9058579]
[1642536762960,5.15,3126.8,3126.7,5.00113685]
[1642536763160,5.15,3126.8,3126.7,5.0]
[1642536763359,5.15,3126.8,3126.7,4.98425688]
[1642536763771,5.95009,3126.8,3126.7,4.98425688]
[1642536763959,1.80009,3126.8,3126.7,4.98425688]
[1642536764877,0.80009,3126.8,3126.7,4.98425688]
[1642536765059,1.80009,3126.8,3126.7,4.98425688]
[1642536765467,0.80009,3126.8,3126.7,4.98425688]
[1642536765731,0.79993,3127.0,3126.9,1.92469568]
[1642536768310,0.00113684,3127.1,3126.9,1.92469568]
[1642536768624,0.00113684,3127.1,3126.9,2.22469568]
[1642536770658,0.00113684,3127.1,3127.0,0.56213112]
[1642536776528,0.00113684,3127.1,3126.9,1.92469568]
[1642536777560,1.80112684,3127.1,3126.9,1.92469568]
[1642536777758,7.48376612,3127.0,3126.9,1.92469568]
[1642536777964,8.28369612,3127.0,3126.9,1.92469568]
[1642536778158,9.28369612,3127.0,3126.9,1.92469568]
[1642536778359,6.69993,3127.0,3126.9,1.92469568]
[1642536779157,9.3020541,3127.0,3126.8,0.1279]
[1642536779360,9.19989351,3126.9,3126.8,0.1279]
[1642536780464,3.54989351,3126.9,3126.8,0.1279]
[1642536780712,1.0,3126.9,3126.8,0.1279]
[1642536781106,1.79993,3127.0,3126.8,0.1279]
[1642536781711,4.3230933,3127.0,3126.8,0.1279]
[1642536782712,1.79993,3127.0,3126.8,0.1279]
[1642536785257,4.3230933,3127.0,3126.8,0.1279]
[1642536785856,1.79993,3127.0,3126.8,0.1279]
[1642536786769,4.59906066,3127.0,3126.8,0.1279]
[1642536787159,2.09993,3127.0,3126.8,0.1279]
[1642536787974,1.79993,3127.0,3126.8,0.1279]
[1642536788807,0.79993,3127.0,3126.8,0.1279]
[1642536789028,0.00113684,3127.1,3126.8,0.1279]
[1642536789610,0.35538854,3127.4,3126.8,0.1279]
[1642536790011,0.35538854,3127.4,3127.2,1.1900729]
[1642536790012,0.00227369,3127.3,3127.2,1.1900729]
[1642536790208,0.00227369,3127.3,3127.2,3.19480974]
[1642536790915,0.00227369,3127.3,3127.2,2.00473684]
[1642536794062,2.65227369,3127.3,3127.2,2.00473684]
[1642536794462,3.65227369,3127.3,3127.2,2.00473684]
[1642536795066,9.26230954,3127.3,3127.2,2.00473684]
[1642536795479,5.65,3127.2,3126.8,0.1279]
[1642536795725,8.53634811,3127.1,3127.0,2.04104966]
[1642536795905,8.53634811,3127.1,3126.8,0.1279]
[1642536795906,8.53748495,3127.1,3126.8,0.1279]
[1642536796116,2.50159808,3127.0,3126.8,0.1279]
[1642536796337,42.0,3126.8,3125.9,0.1279]
[1642536796513,0.77839724,3126.7,3125.9,0.1279]
[1642536796711,0.8003211,3126.5,3126.0,0.00511581]
[1642536796924,1.26531,3126.4,3126.2,1.95381194]
[1642536797112,2.26531,3126.4,3126.2,1.95381194]
[1642536797309,2.26531,3126.4,3126.3,0.00341054]
[1642536797510,2.56531,3126.4,3126.3,0.00341054]
[1642536797911,8.21531,3126.4,3126.3,0.00341054]
[1642536798513,5.15714816,3126.4,3126.3,0.00341054]
[1642536798822,3.42691,3126.4,3126.3,0.00341054]
[1642536799013,2.26531,3126.4,3126.3,0.00341054]
[1642536799252,0.80031,3126.4,3126.2,0.00397897]
[1642536799674,4.86523955,3126.6,3125.5,0.00795793]
[1642536799860,0.80004,3126.6,3125.9,0.48766592]
[1642536800058,0.80004,3126.6,3126.0,0.1279]
[1642536800456,1.43353066,3126.6,3126.2,1.97406131]
[1642536800858,0.02241412,3126.3,3126.2,1.97406131]
[1642536801258,0.02241412,3126.3,3126.2,1.97804028]
[1642536801859,0.02241412,3126.3,3126.2,4.56944759]
[1642536802062,0.02241412,3126.3,3126.2,4.86944759]
[1642536803519,1.412e-05,3126.3,3126.2,4.86944759]
[1642536803709,0.00113684,3127.1,3126.2,4.86944759]
[1642536803911,0.00113684,3127.1,3126.4,1.5996388]
[1642536804113,0.00113684,3127.1,3126.5,2.65960455]
[1642536804312,0.00113684,3127.1,3126.5,2.66187825]
[1642536804510,0.00113684,3127.1,3126.6,0.00170527]
[1642536805110,0.00113684,3127.1,3126.7,2.22448223]
[1642536806510,0.79992,3127.0,3126.7,2.22448223]
[1642536807558,2.06273815,3127.0,3126.7,2.22448223]
[1642536807760,2.86277635,3127.0,3126.7,2.22448223]
[1642536808558,1.60014,3126.9,3126.7,2.22448223]
[1642536812112,1.60014,3126.9,3126.6,0.00170527]
[1642536812312,0.83201219,3126.8,3126.6,0.00170527]
[1642536812515,3.60009,3126.7,3126.6,0.00170527]
[1642536812712,0.80009,3126.7,3126.6,0.00170527]
[1642536813916,0.80009,3126.7,3126.4,0.00284212]
[1642536815259,2.60014,3126.9,3126.4,0.00284212]
[1642536815260,0.79995,3126.9,3126.4,0.00284212]
[1642536815480,1.1279,3126.8,3126.4,0.00284212]
[1642536815659,0.1279,3126.8,3126.4,0.00284212]
[1642536816164,0.1279,3127.0,3126.4,0.00284212]
[1642536816370,1.00113684,3127.1,3126.4,0.00284212]
[1642536816371,1.12903684,3127.1,3126.4,0.00284212]
[1642536816566,0.00113684,3127.1,3126.4,0.00284212]
[1642536817463,0.80104684,3127.1,3126.4,0.00284212]
[1642536817661,4.30104684,3127.1,3126.4,0.00284212]
[1642536818070,1.0,3127.0,3126.4,0.00284212]
[1642536818824,0.79995,3126.9,3126.4,0.00284212]
[1642536821218,0.28849686,3126.8,3126.4,0.00284212]
[1642536822259,0.80001,3126.7,3126.4,0.00284212]
[1642536827811,1.10001,3126.7,3126.4,0.00284212]
[1642536828613,0.3,3126.7,3126.4,0.00284212]
[1642536828812,0.28849686,3126.8,3126.4,0.00284212]
[1642536835216,0.80001,3126.7,3126.4,0.00284212]
[1642536836959,1.80001,3126.7,3126.4,0.00284212]
[1642536841330,4.27962767,3126.7,3126.4,0.00284212]
[1642536841529,1.80001,3126.7,3126.4,0.00284212]
[1642536841826,4.32473081,3126.7,3126.4,0.00284212]
[1642536842018,4.62473081,3126.7,3126.4,0.00284212]
[1642536842228,0.8001591,3126.6,3126.4,0.00284212]
[1642536842420,8.3088737,3126.5,3126.4,0.00284212]
[1642536842617,10.1090837,3126.5,3126.4,0.00284212]
[1642536843417,4.4590837,3126.5,3126.4,2.08918897]
[1642536843617,4.4590837,3126.5,3126.4,0.00284212]
[1642536843932,4.4590837,3126.5,3126.3,3.0]
[1642536844117,7.10189776,3126.4,3126.3,3.0]
[1642536844560,3.50189776,3126.4,3126.3,3.00341054]
[1642536845775,5.53272029,3126.4,3126.3,3.00341054]
[1642536845962,5.53272029,3126.4,3126.3,0.00341054]
[1642536846404,1.60043,3126.3,3126.1,0.00454739]
[1642536846563,2.4006546,3126.3,3126.1,0.00454739]
[1642536846769,0.8002,3126.3,3126.1,0.00454739]
[1642536846971,1.0,3126.4,3125.8,0.00625266]
[1642536847170,1.0,3126.5,3125.7,0.00682109]
[1642536847567,1.1279,3126.6,3125.7,0.00682109]
[1642536848223,0.1279,3126.6,3126.3,0.6665132]
[1642536848420,1.0,3126.6,3126.4,1.77385602]
[1642536848624,1.80001,3126.7,3126.4,0.00284212]
[1642536848820,1.80001,3126.7,3126.5,0.0022737]
[1642536849017,1.80001,3126.7,3126.4,0.00284212]
[1642536851124,1.80001,3126.7,3126.5,2.08118474]
[1642536851521,1.80001,3126.7,3126.6,0.00170527]
[1642536851971,0.80001,3126.7,3126.6,0.00170527]
[1642536854782,0.28849686,3126.8,3126.2,0.00397897]
[1642536855016,0.28849686,3126.8,3126.2,0.71287897]
[1642536855392,0.28849686,3126.8,3126.4,2.17830587]
[1642536855843,0.28849686,3126.8,3126.5,0.0022737]
[1642536856233,0.28849686,3126.8,3126.6,0.61917155]
[1642536856633,0.28849686,3126.8,3126.7,0.00113685]
[1642536860463,2.3998582,3127.2,3126.7,0.00113685]
[1642536860689,0.47550971,3127.4,3126.8,0.1407536]
[1642536861064,0.00170527,3127.2,3126.8,0.1407536]
[1642536861504,0.00113684,3127.1,3126.8,0.1279]
[1642536861883,0.00227369,3127.3,3126.9,2.28297459]
[1642536862271,0.13017369,3127.3,3126.9,2.28297459]
[1642536862869,0.13017369,3127.3,3127.1,1.08862995]
[1642536863078,0.00227369,3127.3,3127.1,1.08862995]
[1642536864820,0.00227369,3127.3,3126.9,2.28297459]
[1642536865932,0.80212369,3127.3,3126.9,2.28297459]
[1642536866535,0.80212369,3127.3,3126.7,0.00113685]
[1642536866736,1.23002369,3127.3,3126.7,0.00113685]
[1642536866997,0.80009,3127.1,3126.7,0.00113685]
[1642536867185,0.1279,3127.0,3126.5,0.0022737]
[1642536867385,1.2889,3127.2,3126.5,0.0022737]
[1642536867584,1.77702186,3126.7,3126.1,0.00454739]
[1642536867785,0.1279,3126.9,3126.0,0.00511581]
[1642536867986,1.1279,3126.9,3126.0,0.00511581]
[1642536868202,0.1279,3126.9,3126.0,0.00511581]
[1642536868385,0.92787,3126.9,3126.0,0.00511581]
[1642536868585,0.92787,3126.9,3126.0,2.72320809]
[1642536868586,1.92787,3126.9,3126.0,2.72320809]
[1642536868888,1.1279,3126.9,3126.1,0.00454739]
[1642536869085,1.1279,3126.9,3126.1,1.69570755]
[1642536869086,2.24513428,3126.9,3126.1,1.69570755]
[1642536869394,2.24513428,3126.9,3126.2,0.00397897]
[1642536869784,0.1279,3126.9,3126.4,1.22180416]
[1642536869985,0.00113684,3127.1,3126.4,1.22180416]
[1642536870286,1.00113684,3127.1,3126.5,0.0022737]
[1642536870923,1.00113684,3127.1,3126.7,1.82248345]
[1642536871158,1.00113684,3127.1,3126.9,1.09556781]
[1642536871524,0.00113684,3127.1,3126.9,1.09556781]
[1642536871935,0.00113684,3127.1,3126.5,0.0022737]
[1642536872331,0.00113684,3127.1,3126.6,2.28176695]
[1642536872725,0.00113684,3127.1,3126.7,0.00113685]
[1642536873929,0.29830985,3126.9,3126.7,0.00113685]
[1642536874143,6.44998,3126.8,3126.5,0.0022737]
[1642536874379,6.57788,3126.8,3126.4,0.00284212]
[1642536874575,1.0,3126.7,3126.4,0.00284212]
[1642536874967,2.0651006,3126.4,3126.0,0.00511581]
[1642536875168,0.80014,3126.3,3126.0,0.00511581]
[1642536875772,0.75014,3126.3,3125.9,0.00568424]
[1642536876000,0.1279,3126.2,3125.7,0.00682109]
[1642536876170,0.1279,3126.2,3125.5,0.00795793]
[1642536876171,0.80029,3126.1,3125.5,0.00795793]
[1642536876519,0.8003186,3125.9,3125.3,0.00909478]
[1642536876770,1.65113613,3125.8,3125.3,0.00909478]
[1642536877179,0.1279,3126.0,3125.3,0.00909478]
[1642536877583,0.1279,3126.1,3125.3,0.00909478]
[1642536877783,0.80033,3125.8,3125.3,0.00909478]
[1642536877971,0.80033,3125.8,3125.2,0.0096632]
[1642536878226,0.80033,3125.8,3125.2,0.96367624]
[1642536878629,0.80033,3125.8,3125.3,0.00909478]
[1642536878818,0.1279,3126.0,3125.3,0.00909478]
[1642536879220,0.1279,3126.3,3125.3,0.00909478]
[1642536879421,1.2406,3126.4,3125.4,0.1279]
[1642536879640,1.2406,3126.4,3126.2,2.1051857]
[1642536879823,0.1279,3126.6,3125.5,0.00795793]
[1642536880322,0.1279,3126.6,3125.7,1.28906053]
[1642536880752,0.1279,3126.6,3125.8,0.00625266]
[1642536880753,0.80008,3126.4,3125.8,0.00625266]
[1642536880920,0.92798,3126.4,3125.8,0.00625266]
[1642536881219,1.92798,3126.4,3125.8,0.00625266]
[1642536883875,1.92798,3126.4,3125.5,0.00795793]
[1642536884073,0.29182113,3126.0,3125.5,0.00795793]
[1642536884376,2.63603281,3125.9,3125.5,0.00795793]
[1642536884572,1.0,3125.8,3125.5,0.00795793]
[1642536884771,0.1279,3125.7,3125.3,0.00909478]
[1642536884975,0.9283483,3125.7,3125.3,0.00909478]
[1642536885179,1.9283483,3125.7,3125.3,0.00909478]
[1642536885591,3.5292383,3125.7,3125.3,0.00909478]
[1642536885886,0.465,3125.6,3125.3,0.00909478]
[1642536886073,0.1279,3125.5,3125.3,0.00909478]
[1642536886280,3.55871946,3125.5,3125.3,0.00909478]
[1642536886460,6.51444506,3125.4,3125.3,0.00909478]
[1642536886660,4.97429161,3125.4,3125.3,0.00909478]
[1642536886865,5.97429161,3125.4,3125.3,0.00909478]
[1642536887773,6.27429161,3125.4,3125.3,0.00909478]
[1642536887966,6.57429161,3125.4,3125.3,0.00909478]
[1642536888272,6.72375956,3125.4,3125.3,0.00909478]
[1642536889367,41.99090522,3125.3,3123.9,5.43854926]
[1642536889570,0.80062,3124.7,3123.9,9.54834926]
[1642536889772,1.60124,3124.8,3124.0,0.0073895]
[1642536889773,2.53961178,3124.6,3124.0,0.0073895]
[1642536890288,1.0,3124.5,3124.0,0.0073895]
[1642536890471,2.50833316,3124.4,3124.0,0.0073895]
[1642536890669,1.80072,3124.3,3124.0,0.0073895]
[1642536891672,2.29826,3124.2,3124.0,0.0073895]
[1642536891881,5.778,3124.1,3124.0,0.0073895]
[1642536892071,7.078,3124.1,3124.0,0.0073895]
[1642536892474,7.65270305,3124.1,3124.0,0.0073895]
[1642536892782,2.00270305,3124.1,3124.0,0.0073895]
[1642536893666,0.27470305,3124.1,3124.0,0.0073895]
[1642536893834,1.57470305,3124.1,3124.0,0.0073895]
[1642536894030,1.27470305,3124.1,3124.0,0.0073895]
[1642536895230,1.27470305,3124.1,3123.2,0.01193689]